{"text_format":"1","workbook":"xlsx","n_sheets":1,"sheets":["conceptos"],"not_rendered":{"charts":0,"images":2,"macros":1,"external_links":0,"defined_names":1,"comments":0,"pivot_tables":0},"unopened":[],"bounds":{"document_bytes":16777216,"sheet_cells":100000,"rows_first":2000,"rows_last":500,"rows_between":2000,"halvings":0,"cell_chars":16384,"cell_head_chars":4096},"cells_cut":0,"cells_raw":0,"read":"whole","date_system":"1900"}

{"sheet":"conceptos","index":0,"n_rows":99,"n_cols":8,"rows_kept":99,"cut":false,"hidden":false,"merged":[[96,0,96,4],[97,0,98,4],[13,0,13,6],[0,2,0,5],[9,2,9,5],[1,2,3,5],[4,2,4,3],[6,2,6,3],[7,2,7,3],[4,4,4,5],[5,4,5,5],[6,4,6,5],[7,4,7,5],[10,2,10,5],[11,2,11,5],[5,1,8,1]]}
[null,"GOBIERNO DEL ESTADO DE JALISCO","LICITACIÓN PÚBLICA ESTATAL"]
[null,"INSTITUTO DE LA INFRAESTRUCTURA FÍSICA EDUCATIVA DEL","E-GO6000-E-REH-05480-LP-0165-2020"]
[null,"ESTADO DE JALISCO"]
[]
[null,"DESCRIPCIÓN GENERAL DE LOS TRABAJOS:","FECHA DE INICIO:"]
[null,null,null,"FECHA DE TERMINACIÓN:"]
[null,null,"PLAZO DE EJECUCIÓN:"]
[null,null,"FECHA:"]
[]
[null,"RAZÓN SOCIAL DEL LICITANTE:","NOMBRE, CARGO Y FIRMA DEL LICITANTE:",null,null,null,"DOCUMENTO"]
[]
[]
[]
["PRESUPUESTO DE OBRA"]
[]
["CLAVE","DESCRIPCIÓN","UNIDAD","CANTIDAD","PRECIO UNITARIO ($)","PRECIO UNITARIO ($) CON LETRA","IMPORTE ($) M.N."]
["TRABAJO : EXESC-REH-05480","MANTENIMIENTO Y CONSERVACIÓN DEL INSTITUTO DE LA INFRAESTRUCTURA FÍSICA EDUCATIVA DEL ESTADO DE JALISCO, UBICADO EN LA COLONIA MIRAFLORES, MUNICIPIO DE GUADALAJARA, JALISCO.",null,null,null,null,{"$f":"TEXT(SUM(G18 + G54 + G57 + G60 + G63 + G66 + G70), \"$ #,##0.00 ;\")","v":"$ 0.00 "}]
["CNJ","CONJUNTO",null,null,null,null,{"$f":"TEXT(SUM(G19 + G26 + G29 + G34 + G36 + G41 + G43 + G52), \"$ #,##0.00 ;\")","v":"$ 0.00 "}]
["CNJ.01(140)","DEMOLICIONES, DESMONTAJES Y MECANICA DE SUELOS    ",null,null,null,null,{"$f":"TEXT(SUM(G20:G25), \"$ #,##0.00 ;\")","v":"$ 0.00 "}]
[140287,"MOVIMIENTO DE MOBILIARIO (ESCRITORIOS, PIZARRONES, CREDENZAS, SILLONES, LIBREROS, SILLERIA, MESAS, EQUIPOS, ETC.) A BODEGA O LUGAR INDICADO, DENTRO O FUERA DE LA OBRA, INCLUYE: LIMPIEZA DE LOS MUEBLES, RECOLOCACION DE LOS MISMOS EN SU LUGAR ORIGINAL, EQUIPO NECESARIO, ACARREOS Y MANO DE OBRA.\n\n","PZA","31.0000",0,"CERO PESOS 00/100 M.N.",0,196674]
[916834,"DESINSTALCION, REPARACION Y RECOLOCACION DE SENSOR ELECTRONICO DE PRESENCIA PARA FLUXOMETRO EXISTENTE, INCLUYE: MATERIALES Y PIEZAS DE REPUESTO, REPOSICION DE BATERIAS, MANO DE OBRA, PRUEBAS Y HERRAMIENTA.","PZA","1.0000",0,"CERO PESOS 00/100 M.N.",0,196675]
[917202,"RETIRO DE PISO DE PIEDRA, MARMOL, PIEDRA RECINTO, GRANITO Y/0 CANTERA, LAMINADAS, POR MEDIOS MANUALES, CON RECUPERACION, INCLUYE: HERRAMIENTA, MANO DE OBRA, ACARREO Y ALMACENAMIENTO DEL MATERIAL DENTRO DE LA OBRA PARA SU POSTERIOR COLOCACION.","M2 ","18.0000",0,"CERO PESOS 00/100 M.N.",0,196676]
[928629,"DEMOLICION DE MURO DE BLOCK DE CEMENTO DE 14 CMS. DE ESPESOR. INCLUYE: CADENAS Y CASTILLOS ARMADOS, ANDAMIOS, MANO DE OBRA, ACARREOS DENTRO Y FUERA DE LA OBRA DEL MATERIAL PRODUCTO DE LA DEMOLICION Y LIMPIEZA DEL AREA DE TRABAJO.","M2 ","38.0000",0,"CERO PESOS 00/100 M.N.",0,196677]
[931788,"DEMOLICION DE PISO DE CERAMICA, INCLUYE: MANO DE OBRA Y RETIRO DE MATERIALES PRODUCTO DE LA DEMOLICION.","M2 ","38.0000",0,"CERO PESOS 00/100 M.N.",0,196678]
[933529,"DESINSTALACION, REVISION Y REPARACION DE FLUXOMETRO, INCLUYE; MANO DE OBRA ESPECIALIZADA, REPOSICION DE PIEZAS FALTANTES Y/O EN MAL ESTADO, REINSTALACION DE FLUXOMETRO, PRUEBAS Y LIMPIEZA DEL AREA DE TRABAJO.","PZA","6.0000",0,"CERO PESOS 00/100 M.N.",0,196679]
["CNJ.02(160)","CIMENTACION                                       ",null,null,null,null,{"$f":"TEXT(SUM(G27:G28), \"$ #,##0.00 ;\")","v":"$ 0.00 "}]
[167320,"DALA DE DESPLANTE DE CONCRETO F´C= 250 KG/CM2, T.M.A.= 3/4\", CON SECCION DE 14 X 25 CM., ARMADA CON 4 VARILLAS DEL #3 Y ESTRIBOS DEL #2 @ 20 CM., INCLUYE: ARMADO, COLADO, CURADO, VIBRADO, CIMBRA COMUN, DESCIMBRA, DESPERDICIOS, TRASLAPES, CRUCES DE VARILLAS CON ELEMENTOS TRANSVERSALES, MANO DE OBRA, HERRAMIENTA Y ACARREO DE MATERIALES AL SITIO DE SU UTILIZACION, A CUALQUIER ALTURA.","ML ","14.0000",0,"CERO PESOS 00/100 M.N.",0,196680]
[192508,"ANCLAJE DE CASTILLO EN CIMENTACION 14 X 20 CMS., CONCRETO F'C=250 KG/CM2, ARMADO CON 4 VARILLAS DEL #3 (3/8\") Y ESTRIBOS DEL #2 A CADA 15 CMS., INCLUYE: ARMADO, COLADO, CURADO, VIBRADO, CIMBRA COMUN, DESCIMBRA, DESPERDICIOS, TRASLAPES, CRUCES DE VARILLAS CON ELEMENTOS TRANSVERSALES, ANDAMIOS, MANO DE OBRA, HERRAMIENTA Y ACARREO DE MATERIALES AL SITIO DE SU UTILIZACION, A CUALQUIER ALTURA.","ML ","3.0000",0,"CERO PESOS 00/100 M.N.",0,196681]
["CNJ.03(310)","MUROS, CADENAS, CASTILLOS Y REPIZONES.            ",null,null,null,null,{"$f":"TEXT(SUM(G30:G33), \"$ #,##0.00 ;\")","v":"$ 0.00 "}]
[190012,"MURO DE TABICON SOLIDO DE JALCRETO DE 14 CMS. DE ANCHO PROMEDIO, A SOGA, ACABADO COMUN, ASENTADO CON MORTERO CEMENTO-ARENA EN PROPORCION 1:3, EN CUALQUIER NIVEL, INCLUYE: TRAZO, NIVELACION, PLOMEO, DESPERDICIOS, MANO DE OBRA Y ACARREO DE MATERIALES AL SITIO DE SU UTILIZACION.","M2 ","38.0000",0,"CERO PESOS 00/100 M.N.",0,196682]
[310520,"DALA INTERMEDIA O DE CORONACION DE CONCRETO F'C=150 KG/CM2, T.M.A.=3/4\", CON SECCION DE 15 X 25 CMS., ARMADA CON 4 VARILLAS DEL # 4 Y ESTRIBOS DEL NO. 3 @ 20 CMS., INCLUYE: ARMADO, COLADO, CURADO, VIBRADO, CIMBRA  APARENTE, DESCIMBRA, OCHABOS EN ARISTAS, DESPERDICIOS, TRASLAPES, ESCUADRAS, CRUCE DE VARILLAS CON ELEMENTOS TRANSVERSALES, ANDAMIOS, MANO DE OBRA, HERRAMIENTA Y ACARREO DE MATERIALES AL SITIO DE SU UTILIZACION. A CUALQUIER NIVEL.","ML ","14.0000",0,"CERO PESOS 00/100 M.N.",0,196683]
[312249,"CASTILLO DE CONCRETO F'C=250 KG/CM2, T.M.A.=3/4\", CON SECCION DE 14 X 20 CMS., ARMADA CON 4 VARILLAS DEL # 3 Y ESTRIBOS DEL NO. 2 @ 15 CMS., INCLUYE: ARMADO, COLADO, CURADO, VIBRADO, CIMBRA APARENTE, DESCIMBRA, DESPERDICIOS, TRASLAPES, CRUCES DE VARILLAS CON ELEMENTOS TRANSVERSALES, ANDAMIOS, MANO DE OBRA, HERRAMIENTA Y ACARREO DE MATERIALES AL SITIO DE SU UTILIZACION, A CUALQUIER ALTURA.","ML ","15.0000",0,"CERO PESOS 00/100 M.N.",0,196684]
[344535,"CALAFATEO DE JUNTA DE CONTRACCION ELASTOMERICA ENTRE MUROS Y COLUMNA, A BASE SIKAFLEX-1A DE COLOR DE ACUERDO AL ACABADO DEL ELEMENTO, CON UNA SECCION TRANSVERSAL DE LA JUNTA 2 CM X 1.50 CM, INCLUYE: MATERIALES, DESPERDICIOS, LIMPIEZA, HERRAMIENTAS, MANO DE OBRA Y ACARREO DE MATERIALES. A CUALQUIER ALTURA.","ML ","9.0000",0,"CERO PESOS 00/100 M.N.",0,196685]
["CNJ.04(319)","ENTREPISOS, CUBIERTA Y ACABADOS DE AZOTEA         ",null,null,null,null,{"$f":"TEXT(SUM(G35:G35), \"$ #,##0.00 ;\")","v":"$ 0.00 "}]
[344096,"IMPERMEABILIZACION EN AZOTEA A BASE DE SELLADOR VINILICO, IMPERMEABILIZANTE ELASTOMERICO COLOR ROJO TERRACOTA, MEMBRANA DE POLIESTER, SEGUNDA CAPA DE IMPERMEABILIZANTE ELASTOMERICO COLOR ROJO TERRACOTA Y SELLADO A BASE DE CEMENTO PLASTICO, PREVIA LIMPIEZA DE LA SUPERFICIE RETIRANDO EL POLVO EXISTENTE EN LA LOSA, INCLUYE: SUMINISTRO, COLOCACION, MANO DE OBRA, HERRAMIENTA Y ACARREO DE LOS MATERIALES AL SITIO DE SU COLOCACION, A CUALQUIER NIVEL, TRABAJO TERMINADO.","M2 ","224.6500",0,"CERO PESOS 00/100 M.N.",0,196686]
["CNJ.05(372)","PISOS                                             ",null,null,null,null,{"$f":"TEXT(SUM(G37:G40), \"$ #,##0.00 ;\")","v":"$ 0.00 "}]
[344511,"SUMINISTRO Y COLOCACION DE JUNTA DE CONTRACCION ELASTOMERICA. EN PISOS CON UNA SECCION TRANSVERSAL DE 6 X 10 MM, A BASE DE SILICON DE COLOR PARA JUNTAS DE DILATACION, INCLUYE: LIMPIEZA DEL AREA A TRATAR, DESPERDICIOS Y ACARREO DEL MATERIAL AL SITIO DE SU COLOCACION.","ML ","69.0000",0,"CERO PESOS 00/100 M.N.",0,196687]
[376046,"SUMINISTRO Y COLOCACION DE PISO DE  LOSETA CERAMICA DE 30 X 30 CM., 33 X 33 CM., PRENSADO EN SECO, CON RECUBRIMIENTO ESMALTADO DE COLOR, QUEMADO A MONOCOCCION A TEMPERATURAS DE 1,150 A 1200 °C,  CALIDAD DE PRIMERA, QUE DEBERA CUMPLIR CON LAS SIGUIENTES CARACTERISTICAS TECNICAS: ABSORCION <= 3% , COEFICIENTE DE ESTATICO DE FRICCION >= 0.5, MODULO DE RUPTURA >= 300 KG/CM², PEI, RESISTENCIA A LA ABRASION VISIBLE 1500 CICLOS (PEI IV), RESISTENTE AL MANCHADO, RESISTENCIA AL RAYADO >= 5.0 MOHS, RESISTENTE A LOS QUIMICOS. ASENTADO CON PEGAPISO Y JUNTEDO CON JUNTEADOR DE COLOR,  JUNTAS DE 4 MM. DE ANCHO, MINIMO,  INCLUYE: TRAZO, CORTE, REMATES, ESCUADRE, DESPERDICIOS, DESPATINADO, EMBOQUILLADOS, CERTIFICADO DE CALIDAD, HERRAMIENTAS, MATERIALES,  MANO DE OBRA, LIMPIEZA  Y ACARREO DE MATERIALES AL SITIO DE SU UTILIZACION, A CUALQUIER NIVEL.","M2 ","38.0000",0,"CERO PESOS 00/100 M.N.",0,196688]
[376232,"SUMINISTRO Y COLOCACION DE PISO DE RECINTO NEGRO  DE 40 X 40 CM, DE 2 CM DE ESPESOR,  ASENTADO CON MORTERO, CEMENTO-ARENA EN PROP: 1:3 DE 3 CM DE ESPESOR, INCLUYE: RECORTES, DESBASTADO, FLETES,  ESCUADRE, DESPERDICIOS, MATERIALES, NIVELACION, MANO DE OBRA, JUNTEO Y LIMPIEZA.","M2 ","18.0000",0,"CERO PESOS 00/100 M.N.",0,196689]
[919615,"CALAFATEO DE JUNTA DE CONTRACCION ELASTOMERICA ENTRE PISO Y MURO, A BASE SIKAFLEX-1A DE COLOR DE ACUERDO AL ACABADO DEL ELEMENTO, CON UNA SECCION TRANSVERSAL DE LA JUNTA 2 CM X 1.50 CM, INCLUYE: MATERIALES, DESPERDICIOS, LIMPIEZA, HERRAMIENTAS, MANO DE OBRA Y ACARREO DE MATERIALES. A CUALQUIER ALTURA.","ML ","58.7400",0,"CERO PESOS 00/100 M.N.",0,196690]
["CNJ.06(410)","CANCELERIA, HERRERIA, ALUMINIO, VIDRIOS Y CHAPAS  ",null,null,null,null,{"$f":"TEXT(SUM(G42:G42), \"$ #,##0.00 ;\")","v":"$ 0.00 "}]
[412094,"REPARACION DE PUERTAS, PORTONES, VENTANERIA Y ELEMENTOS DE HERRERIA TUBULAR Y/O ESTRUCTURAL, CON PERFILES COMERCIALES, DESMANTELANDO LAS PARTES OXIDADAS Y COLOCANDO NUEVAS, INCLUYENDO: DESMONTAJE DE LOS ELEMENTOS, ANCLAS, SOLDADURA, CORTES, AJUSTES, DESPERDICIOS, DESCALIBRES, COLOCACION, NIVELACION, HERRAMIENTA, MANO DE OBRA, LIMPIEZA, PINTURA DE TALLER Y ACARREO DE MATERIALES AL SITIO DE SU UTILIZACION. (SE CONSIDERA PARA SU COBRO UNICAMENTE EL PESO DE LOS ELEMENTOS SUMINISTRADOS,)","KG ","1.0000",0,"CERO PESOS 00/100 M.N.",0,196691]
["CNJ.07(510)","INSTALACION ELECTRICA EN EDIFICIO                 ",null,null,null,null,{"$f":"TEXT(SUM(G44:G51), \"$ #,##0.00 ;\")","v":"$ 0.00 "}]
[518044,"SALIDA ELECTRICA PARA CONTACTO DUPLEX POLARIZADO, OCULTA, CON TUBERIA Y CONEXIONES CONDUIT DE PVC. PESADO DE 13 Y 19 MM. DE DIAMETRO,  CABLE VINANEL THW-LS 600 V. A 75° C, 90° C, MARCA CONDUCTORES MONTERREY, (VIAKON-PROTOCOLIZADO), CABLE VINANEL 21 THW-LS 600 V. A 75° C, 90° C, MARCA CONDUMEX (CONDUMEX PROTOCOLIZADO)., CALIBRE 10 Y 12, CAJAS DE REGISTRO  CUADRADAS, CHALUPAS Y TAPAS DE PVC REFORZADO, CONTACTO QUINZIÑO, TAPA DE ALUMINIO, INCLUYE: TRAZO, RANURAS, CONEXION A TIERRA, ACCESORIOS, MATERIALES MENORES Y DE CONSUMO, PRUEBAS, DESPERDICIOS Y ACARREO DEL MATERIAL AL SITIO DE SU COLOCACION, A CUALQUIER NIVEL.","SAL","8.0000",0,"CERO PESOS 00/100 M.N.",0,196692]
[543020,"SUMINISTRO Y COLOCACION DE INTERRUPTOR TERMOMAGNETICO CON 2 POLOS, DE 15-50 AMPERES, MCA. SQUARE D, CAT. QO. INCLUYE: PRUEBAS, FLETES, MATERIALES MENORES Y ACARREO DE MATERIALES AL SITIO DE SU COLOCACION.","PZA","1.0000",0,"CERO PESOS 00/100 M.N.",0,196693]
[544126,"SUMINISTRO E INSTALACION DE INTERRUPTOR DE SEGURIDAD (CUCHILLAS) SIN PORTA-FUSIBLES  CLASE 3130, SERVICIO GENERAL, DE 2 X 30 AMPS, CON GABINETE NEMA-3R, MCA. SQUARE D, CAT. DU221RB,  INCLUYE: ELEMENTOS DE  FIJACION, CONEXION, PRUEBAS, MATERIALES MENORES Y DE CONSUMO, HERRAMIENTAS, LIMPIEZA, MANO DE OBRA Y ACARREOS AL SITIO DE SU INSTALACION.","PZA","1.0000",0,"CERO PESOS 00/100 M.N.",0,196694]
[550090,"SUMINISTRO E INSTALACION DE LUMINARIO FLUORESCENTE DE SOBREPONER, TIPO ENVOLVENTE, AHORRADOR DE ENERGIA DE 2 X 32 WATTS. FABRICADO EN LAMINA CAL 22, RECUBIERTO CON TRATAMIENTO FOSFATIZADO Y PINTURA ACRILICA O POLIESTER COLOR BLANCO, APLICADA ELECTROSTATICAMENTE Y TERMOENDURECIDA, PARA OBTENER UNA REFLECTANCIA MINIMA DE 90%, CON DIFUSOR ACRILICO PRISMATICO 100% PURO, TIPO ENVOLVENTE, CON UNA LONGITUD DE 120 CM., BALASTRO ELECTRONICO DE BAJA EMISION DE ARMONICAS, PARA OPERAR UNA O DOS LAMPARAS T8 DE 32 WATTS, LA LUMINARIA (COMPLETA) DEBERA CUMPLIR CON LA NORMA ANCE, INCLUYE: COPIA DE CERTIFICACION ANCE ANEXA EN ELTRAMITE DE LA ESTIMACION, FIJACION, CONEXION, MATERIALES MENORES, HERRAMIENTAS, GARANTIAS,  MANO DE OBRA, PRUEBAS Y ACARREOS.","PZA","25.0000",0,"CERO PESOS 00/100 M.N.",0,196695]
[907569,"RECABLEADO DE SALIDA ELECTRICA PARA CONTACTO EN DUCTERIA EXISTENTE, CABLE VINANEL THW-LS 600 V. A 75° C, 90° C, MARCA CONDUCTORES MONTERREY, (VIAKON-PROTOCOLIZADO), CABLE VINANEL 21 THW-LS 600 V. A 75° C, 90° C, MARCA CONDUMEX (CONDUMEX PROTOCOLIZADO).  CALIBRE 10 Y 12, INCLUYE: DESCONEXIONES, RETIRO DE CABLES AL 100%, ACCESORIOS, CONTACTO DUPLEX POLARIZADO, CONEXION A TIERRA, TAPA DE ALUMINIO,   MATERIALES MENORES,  HERRAMIENTA, MANO DE OBRA ESPECIALIZADA , CONEXIONES, LIMPIEZA DEL AREA DE TRABAJO, PRUEBAS, DESPERDICIOS Y ACARREO DEL MATERIAL AL SITIO DE SU COLOCACION, A CUALQUIER NIVEL. (NO INCLUYE DUCTERIA, REGISTRO Y CHALUPAS)","SAL","2.0000",0,"CERO PESOS 00/100 M.N.",0,196696]
[907574,"SUMINISTRO Y COLOCACION DE LAMPARA (FOCO) DICROICO DE HALOGENO MR-16,  50W-120V, BASE GX5.3 , INCLUYE: PRUEBAS, HERRAMIENTAS, LIMPIEZA Y MANO DE OBRA, ","PZA","1.0000",0,"CERO PESOS 00/100 M.N.",0,196697]
[931260,"DESINSTALACION Y RETIRO DE CONTACTOS Y/O APAGADORES ELECTRICOS SIN RECUPERACION DE MATERIAL, CONSIDERANDO UNA PIEZA POR TERMINAL (CHALUPA), INCLUYE: RETIRO DE ELEMENTOS DE FIJACION, DESCONEXION, HERRAMIENTAS, LIMPIEZA DEL AREA DE TRABAJO Y MANO DE OBRA, (UNICAMENTE ACCESORIOS)","PZA","3.0000",0,"CERO PESOS 00/100 M.N.",0,196698]
[935700,"SALIDA ELECTRICA DE FUERZA TRIFASICA PARA SISTEMA DE EQUIPO HIDRONEUMATICO, CON TUBERIA Y CONEXIONES CONDUIT GALV. P.G. ROSCADA ETIQUETA AMARILLA DE  25 MM. DE DIAMETRO,  Y TUBO LIQUATITE DE 1\" DE DIAM.,  CABLE VINANEL THW-LS 600 V. A 75° C, 90° C, MARCA CONDUCTORES MONTERREY, (VIAKON-PROTOCOLIZADO), CABLE VINANEL 21 THW-LS 600 V. A 75° C, 90° C, MARCA CONDUMEX (CONDUMEX PROTOCOLIZADO). CALIBRES 10 EN FASES, Y 12 EN TIERRA FISICA, CONDULET RECTANGULAR FSC CON TAPA Y EMPAQUE,  INCLUYE: TRAZO,  MATERIALES MENORES, CONEXIONES, CONECTORES, HERRAMIENTAS,  PRUEBAS, CORTES, AJUSTES,  DESPERDICIOS, LIMPIEZAS,  MANO DE OBRA ESPECIALIZADA,  Y ACARREO DEL MATERIAL AL SITIO DE SU COLOCACION. (LONGITUD CONSIDERADA DESDE EL TABLERO DE ALIMENTACION AL TABLERO DEL EQUIPO,)","SAL","1.0000",0,"CERO PESOS 00/100 M.N.",0,196699]
["CNJ.08(564)","INSTALACION HIDRAULICA, SANITARIA Y GAS EN EDIF.  ",null,null,null,null,{"$f":"TEXT(SUM(G53:G53), \"$ #,##0.00 ;\")","v":"$ 0.00 "}]
[577207,"REVISION Y REPARACION DE SALIDA DE MUEBLE SANITARIO LAVABO INCL, DESMONTAJE LIMPIEZA Y COLOCACION DE ACCESORIOS, SUMINISTRO DE MATERIALES HIDRAULICOS Y SANITARIOS NECESARIOS, INSTALACION, CONEXION, LIMPIEZA, PRUEBAS Y ACARREOS DE MATERIALES COMO LLAVE ANGULAR MOD. 401, JUNTA SELLADORA HERRAJES, ACARREO DE LOS MATERIALES AL SITIO DE SU INSTALACION.","PZA","7.0000",0,"CERO PESOS 00/100 M.N.",0,196700]
["01","PLAZA Y ANDADORES",null,null,null,null,{"$f":"TEXT((G55), \"$ #,##0.00 ;\")","v":"$ 0.00 "}]
["01.01(150)","TRABAJOS PRELIMINARES                             ",null,null,null,null,{"$f":"TEXT(SUM(G56:G56), \"$ #,##0.00 ;\")","v":"$ 0.00 "}]
[905094,"TAPIAL VERTICAL PARA EXTERIORES A BASE DE MADERA DE PINO DE 2DA Y CIMBRAPLAY DE PINO DE 16 MM. DE ESPESOR, DE 0.00 A 2.50 MTS. DE ALTURA, PARA DELIMITAR AREA DE TRABAJO, INCLUYE: PUERTA DE ACCESO AL AREA DE TRABAJO, POSTES VERTICALES DE MADERA (POLIN DE 4\" X 4\") A CADA 2.44 MTS. ANCLADOS 50 CM. AL TERRENO, MATERIALES MENORES Y DE CONSUMO, HERRAMIENTAS, ANDAMIOS, MANTENIMIENTO PERIODICO, MANO DE OBRA, RETIRO DEL TAPIAL UNA VEZ TERMINADA LA OBRA, LIMPIEZA DEL AREA, ACARREOS Y TRASLADOS, TODO EL MATERIAL SERA PROPIEDAD Y RESPONSABILIDAD DEL CONTRATISTA, POR LO QUE ESTE CONCEPTO SE DEBERA CONSIDERAR COMO UNA RENTA POR EL PERIODO DE LA OBRA.","M2 ","14.0000",0,"CERO PESOS 00/100 M.N.",0,196701]
[33,"MURO PARA CONTENCION Y ACOTAMIENTO PERIMETRAL.",null,null,null,null,{"$f":"TEXT((G58), \"$ #,##0.00 ;\")","v":"$ 0.00 "}]
["33.01(428)","ACOTAMIENTO PERIMETRAL                            ",null,null,null,null,{"$f":"TEXT(SUM(G59:G59), \"$ #,##0.00 ;\")","v":"$ 0.00 "}]
[428250,"REPARACION CERCO PERIMETRAL DE MALLA CICLONICA, DE 2.00 MTS. DE ALTURA, INCLUYE: DEMOLICION DE BASE DE CONCRETO, REPOSICIÓN DE POSTE DE LINEA DE TUBO GALVANIZADO DE 48 MM. DE DIAM. CAL. 18 DE 2.00 MTS. DE ALTURA Y 0.40 MTS. DE CIMENTACION  Y  MARCO SUPERIOR DE TUBO GALVANIZADO DE 42 MM DIAM. CAL 20,  TENSORES DE ALAMBRE GALVANIZADO, EXCAVACIONES, AHOGADO DE POSTES EN CONCRETO F'C=150 KG/CM2,  PLOMEO,  MANO DE OBRA,  ACARREO DE MATERIALES DENTRO Y FUERA DE LA OBRA, ACCESORIOS DE COLOCACION, HERRAMIENTA NECESARIA Y LIMPIEZA DEL AREA DE TRABAJO.","ML ","12.0000",0,"CERO PESOS 00/100 M.N.",0,196702]
[19,"SUBESTACION",null,null,null,null,{"$f":"TEXT((G61), \"$ #,##0.00 ;\")","v":"$ 0.00 "}]
["19.01(510)","INSTALACION ELECTRICA EN EDIFICIO                 ",null,null,null,null,{"$f":"TEXT(SUM(G62:G62), \"$ #,##0.00 ;\")","v":"$ 0.00 "}]
[919142,"SUMINISTRO Y COLOCACION DE SISTEMA DE TIERRA FISICA SUBESTACION, COMPUESTA DE 4 VARILLAS COPPER WELD DE 5/8\" X 3.00 ML DE LONG. UNIDAS ENTRE SI,  PARA TENER UNA RESISTIVIDAD MAXIMA PERMITIDA DE 0.0 A 25 OHMS, INCLUYE: POZO PARA TIERRA FISICA CON TUBO DE CONCRETO DE 203X250CMS, TAPA DE CONCRETO CON AGARRADERA DE ALAMBRON DE 1/4\", BENTONITA, CONEXION A TRANSFORMADOR Y A TABLERO GENERAL, CON TUBERIA Y CONEXIONES DE PVC CONDUIT SERVICIO PESADO, CABLE DE COBLE DESNUDO CAL 4/0, DESPERDICIO, MATERIALES MENORES, MEDICION, PRUEBAS Y ACARREO.\n","PDA","3.0000",0,"CERO PESOS 00/100 M.N.",0,196703]
["02","RED ELECTRICA",null,null,null,null,{"$f":"TEXT((G64), \"$ #,##0.00 ;\")","v":"$ 0.00 "}]
["02.01(510)","INSTALACION ELECTRICA EN EDIFICIO                 ",null,null,null,null,{"$f":"TEXT(SUM(G65:G65), \"$ #,##0.00 ;\")","v":"$ 0.00 "}]
[931327,"REVISION Y REPARACION DE LAMPARA LUMINARIA PUNTA DE POSTE EXISTENTE EN EL PLANTEL INCLUYE; CAMBIO DE FOCO, REPOSICION DE MATERIALES FALTANTES Y/O EN MAL ESTADO, ACARREO DE MATERIALES AL SITIO DE SU UTILIZACION, MANO DE OBRA ESPECIALIZADA Y TODO LO NECESARIO PARA SU CORRECTO FUNCIONAMIENTO.","PZA","1.0000",0,"CERO PESOS 00/100 M.N.",0,196704]
["04","RED HIDRAULICA",null,null,null,null,{"$f":"TEXT((G67), \"$ #,##0.00 ;\")","v":"$ 0.00 "}]
["04.01(564)","INSTALACION HIDRAULICA, SANITARIA Y GAS EN EDIF.  ",null,null,null,null,{"$f":"TEXT(SUM(G68:G69), \"$ #,##0.00 ;\")","v":"$ 0.00 "}]
[589313,"SUMINISTRO Y TENDIDO DE TUBERÍA DE CPVC-CTS, PARA CEMENTAR  DE 19 MM DE DIAM. INCLUYE: TRAZO, CONEXIONES (COPLES, CODOS, TEES, NIPLES, ETC), DESPERDICIOS, ENCOFRADO CON CONCRETO F'C=100 KG/CM2 DE 6 X 15 CMS DE SECCION, MATERIALES MENORES Y DE CONSUMO, PRUEBAS, EXCAVACIÓN, RELLENO, HERRAMIENTAS, MANO DE OBRA Y ACARREO DE MATERIALES AL SITIO DE SU COLOCACIÓN.","ML ","72.0000",0,"CERO PESOS 00/100 M.N.",0,196705]
[919614,"RETIRO Y COLOCACION DE TAPA DE CAJA DE VALVULAS RECUPERADA DE FIERRO FUNDIDO DE 50 X 50 CMS. MONTADA SOBRE UN MARCO DE CANAL DE FIERRO DE 4\" T RECIBIDA CON CONCRETO HECHO EN OBRA CON CONCRETO F'C= 250 KG/CM2  T.M.A 3/4\", ARMADO CON VARILLA DE 3 @ 20 CMS. EN UN AREA DE 1.00 X 1.00 MTS, INCLUYE: RETIRO DE TAPA CON RECUPERACION, DEMOLICION DE CONCRETO, ACARREO DE MATERIALES DE DEMOLICION DENTRO Y FUERA DE LA OBRA, MANO DE OBRA, MATERIALES, LIMPIEZA DEL AREA DE TRABAJO","PZA","1.0000",0,"CERO PESOS 00/100 M.N.",0,196706]
["05","CISTERNA",null,null,null,null,{"$f":"TEXT((G71), \"$ #,##0.00 ;\")","v":"$ 0.00 "}]
["05.01(565)","INSTALACION HIDRAULICA, SANITARIA Y GAS EN O. EXT.",null,null,null,null,{"$f":"TEXT(SUM(G72:G72), \"$ #,##0.00 ;\")","v":"$ 0.00 "}]
[597175,"SUMINISTRO E INSTALACION DE CISTERNA PREFABRICADA (CONTENEDOR DE POLIETILENO) DE 10.00 M3 DE CAPACIDAD, MARCA ROTOPLAS, INCLUYE: EXCAVACION, FIRME DE CONCRETO SIMPLE DE 5.00 CMS. DE ESPESOR, MALLA DE GALLINERO SUJETA CON VARILLA DE 3/8\" Y MORTERO CEMENTO-ARENA EN PROPORCION 1:5 DE 3 CMS. DE ESPESOR, RELLENO CON SUELO-CAL A RAZON DE 6 PARTES DE MATERIAL DE EXCAVACION O MATERIAL DE BANCO POR 1 PARTE DE CAL, BROCAL Y TAPA METALICA PARA REGISTRO, LOZA SUPERIOR CON CONCRETO F'C=200 KG/CM2 DE 12 CMS. DE ESPESOR ARMADA CON VARILLA DEL NO. 3 CON ACABADO ESCOBILLADO O APALILLADO, AGUA PARA LLENADO DE CISTERNA DURANTE EL RELLENO, MADERA DE PINO DE 2DA. PARA PUNTALES EN INTERIOR DE CISTERNA, PASO DE LOSA DE CONCRETO, DESPERDICIOS, EQUIPO, HERRAMIENTA Y MANO DE OBRA","PZA","1.0000",0,"CERO PESOS 00/100 M.N.",0,196707]
[null,"RESUMEN DE PARTIDAS"]
["EXESC-REH-05480","MANTENIMIENTO Y CONSERVACIÓN DEL INSTITUTO DE LA INFRAESTRUCTURA FÍSICA EDUCATIVA DEL ESTADO DE JALISCO, UBICADO EN LA COLONIA MIRAFLORES, MUNICIPIO DE GUADALAJARA, JALISCO.",null,null,null,null,{"$f":"G17","v":"$ 0.00 "}]
["CNJ","CONJUNTO",null,null,null,null,{"$f":"G18","v":"$ 0.00 "}]
["CNJ.01(140)","DEMOLICIONES, DESMONTAJES Y MECANICA DE SUELOS    ",null,null,null,null,{"$f":"G19","v":"$ 0.00 "}]
["CNJ.02(160)","CIMENTACION                                       ",null,null,null,null,{"$f":"G26","v":"$ 0.00 "}]
["CNJ.03(310)","MUROS, CADENAS, CASTILLOS Y REPIZONES.            ",null,null,null,null,{"$f":"G29","v":"$ 0.00 "}]
["CNJ.04(319)","ENTREPISOS, CUBIERTA Y ACABADOS DE AZOTEA         ",null,null,null,null,{"$f":"G34","v":"$ 0.00 "}]
["CNJ.05(372)","PISOS                                             ",null,null,null,null,{"$f":"G36","v":"$ 0.00 "}]
["CNJ.06(410)","CANCELERIA, HERRERIA, ALUMINIO, VIDRIOS Y CHAPAS  ",null,null,null,null,{"$f":"G41","v":"$ 0.00 "}]
["CNJ.07(510)","INSTALACION ELECTRICA EN EDIFICIO                 ",null,null,null,null,{"$f":"G43","v":"$ 0.00 "}]
["CNJ.08(564)","INSTALACION HIDRAULICA, SANITARIA Y GAS EN EDIF.  ",null,null,null,null,{"$f":"G52","v":"$ 0.00 "}]
["01","PLAZA Y ANDADORES",null,null,null,null,{"$f":"G54","v":"$ 0.00 "}]
["01.01(150)","TRABAJOS PRELIMINARES                             ",null,null,null,null,{"$f":"G55","v":"$ 0.00 "}]
[33,"MURO PARA CONTENCION Y ACOTAMIENTO PERIMETRAL.",null,null,null,null,{"$f":"G57","v":"$ 0.00 "}]
["33.01(428)","ACOTAMIENTO PERIMETRAL                            ",null,null,null,null,{"$f":"G58","v":"$ 0.00 "}]
[19,"SUBESTACION",null,null,null,null,{"$f":"G60","v":"$ 0.00 "}]
["19.01(510)","INSTALACION ELECTRICA EN EDIFICIO                 ",null,null,null,null,{"$f":"G61","v":"$ 0.00 "}]
["02","RED ELECTRICA",null,null,null,null,{"$f":"G63","v":"$ 0.00 "}]
["02.01(510)","INSTALACION ELECTRICA EN EDIFICIO                 ",null,null,null,null,{"$f":"G64","v":"$ 0.00 "}]
["04","RED HIDRAULICA",null,null,null,null,{"$f":"G66","v":"$ 0.00 "}]
["04.01(564)","INSTALACION HIDRAULICA, SANITARIA Y GAS EN EDIF.  ",null,null,null,null,{"$f":"G67","v":"$ 0.00 "}]
["05","CISTERNA",null,null,null,null,{"$f":"G70","v":"$ 0.00 "}]
["05.01(565)","INSTALACION HIDRAULICA, SANITARIA Y GAS EN O. EXT.",null,null,null,null,{"$f":"G71","v":"$ 0.00 "}]
[]
["IMPORTE CON LETRA (IVA INCLUIDO)",null,null,null,null,"SUBTOTAL M.N.",{"$f":"TEXT(G17,  \"$ #,##0.00 ;\")","v":"$ 0.00 "}]
[{"$f":"UPPER(CONVERTIRNUM(ROUND( G17 * 1.16, 2)))","v":"CERO PESOS 00/100 M.N."},null,null,null,null,"IVA M.N.",{"$f":"TEXT(ROUND( G17 * 0.16, 2),  \"$ #,##0.00 ;\")","v":"$ 0.00 "}]
[null,null,null,null,null,"TOTAL M.N.",{"$f":"TEXT(ROUND( G17 * 1.16, 2),  \"$ #,##0.00 ;\")","v":"$ 0.00 "}]